bitfinex-derivatives/quotes_BTCF0:USTF0_20241210
["timestamp","ask_amount","ask_price","bid_price","bid_amount"]
[1733852427238,0.052832,94607.0,94605.0,0.02064815]
[1733852427441,0.052832,94607.0,94606.0,0.02064815]
[1733852429138,0.052833,94603.0,94602.0,0.001]
[1733852429341,0.052833,94603.0,94602.0,0.02169268]
[1733852429736,0.052833,94603.0,94602.0,0.02069268]
[1733852429939,0.413633,94603.0,94602.0,0.02069268]
[1733852430437,0.413633,94603.0,94600.0,0.02375748]
[1733852430438,0.052835,94601.0,94600.0,0.02375748]
[1733852430833,0.052835,94601.0,94600.0,0.04027706]
[1733852430834,0.052895,94601.0,94600.0,0.04027706]
[1733852431038,6e-05,94601.0,94561.0,0.3241]
[1733852431240,0.3608,94572.0,94561.0,0.3241]
[1733852431450,0.36086,94572.0,94571.0,0.01436616]
[1733852431643,0.36086,94572.0,94571.0,0.0006]
[1733852431948,0.36086,94572.0,94553.0,0.363]
[1733852431949,0.3608,94516.0,94513.0,1e-07]
[1733852432151,0.3608,94516.0,94490.0,0.51504296]
[1733852432152,0.3608,94514.0,94467.0,0.05282]
[1733852432337,0.3608,94514.0,94436.0,0.36043034]
[1733852432338,0.052912,94463.0,94436.0,0.36043034]
[1733852432534,0.052912,94463.0,94425.0,0.3608]
[1733852432535,0.052927,94436.0,94434.0,0.37627416]
[1733852432739,6e-05,94437.0,94436.0,0.052927]
[1733852432944,0.17658863,94444.0,94442.0,0.052923]
[1733852433143,0.05496396,94459.0,94443.0,0.43851742]
[1733852433449,0.01151805,94470.0,94458.0,0.66088]
[1733852433645,0.17658863,94490.0,94469.0,0.3608]
[1733852433838,0.17658863,94500.0,94489.0,0.3608]
[1733852434045,0.17658863,94499.0,94487.0,0.052898]
[1733852434243,0.17658863,94499.0,94469.0,0.02131416]
[1733852434244,0.3608,94488.0,94474.0,0.01306398]
[1733852434452,0.3608,94488.0,94460.0,0.052913]
[1733852434453,0.09128272,94476.0,94460.0,0.052913]
[1733852434643,7.823e-05,94475.0,94457.0,0.3608]
[1733852434940,7.823e-05,94475.0,94462.0,0.3608]
[1733852435144,7.823e-05,94475.0,94474.0,0.413706]
[1733852435548,0.01202903,94488.0,94486.0,0.052899]
[1733852435944,0.01202903,94488.0,94487.0,0.00012]
[1733852436346,0.01202903,94488.0,94474.0,0.36609246]
[1733852436347,0.001,94475.0,94474.0,0.00529246]
[1733852436660,0.3608,94479.0,94458.0,0.00012]
[1733852436951,0.67012209,94488.0,94458.0,0.053035]
[1733852436952,6e-05,94459.0,94458.0,0.053035]
[1733852437246,0.001,94488.0,94487.0,0.052898]
[1733852437452,0.09128272,94505.0,94504.0,0.052889]
[1733852437660,0.00167282,94506.0,94504.0,0.78742443]
[1733852437842,0.00167282,94506.0,94505.0,0.01306203]
[1733852438157,0.00167282,94506.0,94505.0,0.01318203]
[1733852438543,0.00013806,94506.0,94505.0,0.01318203]
[1733852439044,8.249e-05,94506.0,94505.0,0.01318203]
[1733852439441,0.09128272,94549.0,94505.0,0.31318203]
[1733852439743,0.3335,94582.0,94505.0,0.31318203]
[1733852439744,0.09128272,94565.0,94547.0,0.052985]
[1733852439941,0.27359199,94580.0,94547.0,0.052985]
[1733852439942,0.01401024,94570.0,94547.0,0.73451556]
[1733852440139,0.01401024,94570.0,94547.0,0.78738056]
[1733852440446,7.534e-05,94548.0,94547.0,0.37371556]
[1733852440648,0.30007534,94548.0,94530.0,0.3608]
[1733852440851,0.3608,94546.0,94530.0,0.3608]
[1733852441154,6e-05,94531.0,94524.0,0.01427194]
[1733852441350,6e-05,94531.0,94525.0,0.01292967]
[1733852441551,0.27359199,94540.0,94526.0,0.01292967]
[1733852441552,0.052877,94527.0,94526.0,0.01292967]
[1733852441849,0.3608,94538.0,94507.0,0.3608]
[1733852441850,0.05288,94520.0,94507.0,0.3608]
[1733852442052,0.05288,94520.0,94515.0,0.3608]
[1733852442243,0.05288,94520.0,94507.0,0.3608]
[1733852442442,0.05288,94520.0,94508.0,0.01294287]
[1733852442443,0.05226639,94520.0,94508.0,0.01294287]
[1733852442749,0.052882,94517.0,94509.0,0.01294287]
[1733852442951,0.052882,94517.0,94505.0,0.0002466]
[1733852442952,0.3608,94517.0,94505.0,0.0002466]
[1733852443151,0.3608,94506.0,94505.0,0.0002466]
[1733852443653,0.3608,94506.0,94479.0,0.052903]
[1733852443850,1.8608,94506.0,94481.0,0.052902]
[1733852444050,0.0529,94484.0,94482.0,0.01294167]
[1733852444255,0.052903,94479.0,94470.0,0.052907]
[1733852444458,0.052899,94486.0,94471.0,0.0129393]
[1733852444748,0.0529,94485.0,94476.0,0.052904]
[1733852444961,0.052904,94477.0,94476.0,0.3608]
[1733852445548,0.05280582,94477.0,94476.0,0.3608]
[1733852445945,0.05280582,94477.0,94476.0,0.3628]
[1733852446551,0.05294158,94477.0,94476.0,0.002]
[1733852446956,0.052908,94470.0,94465.0,0.3608]
[1733852447155,1.50113576,94477.0,94465.0,0.3608]
[1733852447353,6e-05,94466.0,94465.0,0.413711]
[1733852447656,0.01525649,94477.0,94468.0,0.052909]
[1733852447860,0.052907,94472.0,94468.0,0.052909]
[1733852448263,0.01525649,94477.0,94463.0,0.052912]
[1733852448453,0.052908,94470.0,94463.0,0.052912]
[1733852448657,6e-05,94464.0,94463.0,0.052912]
[1733852449465,6e-05,94464.0,94462.0,0.00012391]
[1733852449466,0.052972,94464.0,94462.0,0.00012391]
[1733852449763,0.36086,94463.0,94462.0,0.00012391]
[1733852450652,0.36086,94463.0,94446.0,0.3608]
[1733852450653,0.052918,94453.0,94446.0,0.3608]
[1733852450854,0.052918,94453.0,94432.0,0.3608]
[1733852450855,1.5,94452.0,94432.0,0.3608]
[1733852451060,6e-05,94447.0,94446.0,0.052921]
[1733852451253,0.27359199,94456.0,94452.0,0.052918]
[1733852451457,0.27359199,94456.0,94432.0,0.37468709]
[1733852451648,0.052923,94444.0,94442.0,0.3608]
[1733852451853,0.052923,94444.0,94418.0,9.516e-05]
[1733852451854,8.563e-05,94443.0,94424.0,0.00152]
[1733852452057,8.563e-05,94443.0,94433.0,0.3608]
[1733852452258,8.563e-05,94443.0,94442.0,0.3608]
[1733852452464,8.563e-05,94443.0,94442.0,0.37369738]
[1733852452756,8.563e-05,94443.0,94442.0,0.01289738]
[1733852452957,8.563e-05,94443.0,94442.0,0.01290349]
[1733852453858,6.3e-07,94443.0,94442.0,0.01290349]
[1733852454258,6.3e-07,94443.0,94442.0,0.03354056]
[1733852454961,6.3e-07,94443.0,94442.0,0.01290349]
[1733852455163,0.00100063,94443.0,94442.0,0.03355377]
[1733852455661,0.00100063,94443.0,94442.0,0.03357708]
[1733852456062,0.06697805,94469.0,94442.0,0.03357708]
[1733852456254,0.052909,94469.0,94463.0,0.413712]
[1733852456454,0.052911,94465.0,94463.0,0.37371426]
[1733852456856,0.052911,94465.0,94453.0,0.413717]
[1733852456857,0.01420658,94470.0,94453.0,0.3608]
[1733852457170,0.052916,94456.0,94454.0,0.01292701]
[1733852457462,0.413716,94456.0,94455.0,0.01292701]
[1733852458262,0.413716,94456.0,94442.0,0.001]
[1733852458263,0.052923,94443.0,94442.0,0.001]
[1733852458457,0.052923,94443.0,94442.0,0.01396049]
[1733852458666,0.052923,94443.0,94442.0,0.01296049]
[1733852458667,0.051983,94443.0,94442.0,0.01296049]
[1733852459070,6e-05,94443.0,94442.0,0.03370257]
[1733852459257,6e-05,94443.0,94442.0,0.39450257]
[1733852459965,0.00106,94443.0,94442.0,0.39650257]
[1733852460873,0.00106,94443.0,94442.0,0.03570257]
[1733852461566,0.00106,94443.0,94442.0,0.39650257]
[1733852462166,0.00106,94443.0,94442.0,0.03570257]
[1733852462668,0.01486562,94443.0,94442.0,0.03570257]
[1733852462859,0.00106,94443.0,94442.0,0.03570257]
[1733852463573,0.00106,94443.0,94442.0,0.39650257]
[1733852463756,0.00106,94443.0,94442.0,0.4105812]
[1733852463757,0.00102,94443.0,94442.0,0.4105812]
[1733852463960,0.00102,94443.0,94442.0,0.39650257]
[1733852464368,0.00158916,94464.0,94462.0,0.052912]
[1733852464560,0.00158916,94464.0,94462.0,0.08661457]
[1733852464869,0.00158916,94464.0,94462.0,0.03382257]
[1733852464870,0.05450116,94464.0,94462.0,0.03382257]
[1733852465068,0.36090246,94463.0,94462.0,0.03382257]
[1733852465457,0.36190246,94463.0,94462.0,0.03382257]
[1733852465977,0.36190246,94463.0,94462.0,0.01308049]
[1733852467171,0.66190246,94463.0,94462.0,0.00012]
[1733852467377,0.66190246,94463.0,94430.0,0.3608]
[1733852467673,0.66190246,94463.0,94431.0,0.03378284]
[1733852467674,0.052929,94432.0,94431.0,0.03378284]
[1733852469064,0.053929,94432.0,94431.0,0.03578284]
[1733852469272,0.053929,94432.0,94431.0,0.39658284]
[1733852470675,0.052929,94432.0,94431.0,0.39458284]
[1733852470863,0.052929,94432.0,94431.0,0.03478284]
[1733852471264,0.052929,94432.0,94431.0,0.08771284]
[1733852471568,0.053929,94432.0,94431.0,0.08771284]
[1733852471867,0.001,94432.0,94431.0,0.08771284]
[1733852472265,0.0114495,94435.0,94431.0,0.08771284]
[1733852472266,0.0114495,94435.0,94431.0,0.03378284]
[1733852472463,0.052928,94434.0,94433.0,0.052928]
[1733852472671,0.052928,94434.0,94433.0,0.08671084]
[1733852473266,1.5,94434.0,94433.0,0.08671084]
[1733852473477,0.3608,94443.0,94442.0,0.052924]
[1733852473478,0.01113127,94443.0,94442.0,0.052924]
[1733852473676,0.3608,94455.0,94442.0,0.45012145]
[1733852473974,0.052914,94459.0,94446.0,0.31610934]
[1733852474275,0.27359199,94450.0,94447.0,0.03397156]
[1733852474468,0.27359199,94450.0,94448.0,0.3821572]
[1733852474774,0.01135874,94459.0,94440.0,0.3608]
[1733852474775,0.01135874,94459.0,94449.0,0.39477381]
[1733852474974,6.2e-07,94464.0,94462.0,0.052912]
[1733852475176,0.27359199,94500.0,94488.0,0.052898]
[1733852475479,0.05448158,94496.0,94495.0,0.00012]
[1733852476171,0.05459264,94496.0,94495.0,0.00012]
[1733852476580,0.06553684,94496.0,94495.0,0.00012]
[1733852476966,0.06394826,94496.0,94495.0,0.00012]
[1733852477276,0.01105526,94496.0,94495.0,0.053014]
[1733852477474,0.00011106,94496.0,94495.0,0.06609172]
[1733852477777,0.00158824,94518.0,94513.0,0.052884]
[1733852477979,0.36238824,94518.0,94504.0,0.3608]
[1733852478278,0.42660114,94518.0,94517.0,0.00012]
[1733852478676,0.42667633,94518.0,94517.0,0.00012]
[1733852478869,0.42667633,94518.0,94517.0,0.03393688]
[1733852479270,0.42667633,94518.0,94517.0,0.00012]
[1733852479876,0.06428809,94518.0,94517.0,0.03389455]
[1733852480071,0.06428809,94518.0,94517.0,0.03389458]
[1733852480877,1.56957808,94518.0,94517.0,0.00012]
[1733852481083,1.56957808,94518.0,94517.0,0.03386909]
[1733852481288,0.00536518,94518.0,94517.0,0.39466909]
[1733852481583,0.05824618,94518.0,94517.0,0.39866909]
[1733852481771,0.05824618,94518.0,94499.0,0.3608]
[1733852481772,0.35824618,94518.0,94499.0,0.3608]
[1733852481973,0.052891,94500.0,94499.0,0.3608]
[1733852482175,6e-05,94500.0,94495.0,0.00012]
[1733852482375,0.052893,94496.0,94495.0,0.00012]
[1733852482573,0.052953,94496.0,94495.0,0.00012]
[1733852483188,0.352953,94496.0,94485.0,8.7e-07]
[1733852483381,0.052899,94486.0,94485.0,8.7e-07]
[1733852483684,0.052902,94480.0,94479.0,8.7e-07]
[1733852483874,0.769382,94480.0,94479.0,8.7e-07]
[1733852484179,1.069442,94480.0,94479.0,8.7e-07]
[1733852484579,1.06952312,94480.0,94479.0,8.7e-07]
[1733852484781,0.76952312,94480.0,94479.0,8.7e-07]
[1733852485685,0.05304312,94480.0,94479.0,8.7e-07]
[1733852485979,0.00014112,94480.0,94479.0,0.05290387]
[1733852486182,0.052894,94496.0,94480.0,0.052902]
[1733852486374,0.3608,94498.0,94490.0,0.3608]
[1733852486978,0.284844,94500.0,94490.0,0.413696]
[1733852487181,0.052887,94508.0,94504.0,0.052889]
[1733852487383,0.27359199,94520.0,94504.0,0.052889]
[1733852487384,0.27359199,94520.0,94504.0,0.3608]
[1733852487585,0.052888,94506.0,94504.0,0.36092]
[1733852487773,0.052888,94506.0,94504.0,0.3608]
[1733852489075,0.052888,94506.0,94490.0,0.003]
[1733852489076,0.052896,94491.0,94490.0,0.003]
[1733852489285,0.27359199,94501.0,94486.0,0.3608]
[1733852489490,0.052898,94487.0,94486.0,0.3608]
[1733852489786,0.052898,94487.0,94478.0,0.3244]
[1733852489975,0.052902,94480.0,94477.0,0.348]
[1733852490380,0.052902,94480.0,94476.0,0.3608]
[1733852490681,0.052962,94480.0,94477.0,0.3608]
[1733852490885,0.052962,94480.0,94474.0,0.3608]
[1733852491381,6e-05,94480.0,94478.0,0.052903]
[1733852491583,6e-05,94480.0,94474.0,0.3608]
[1733852491584,6e-05,94480.0,94476.0,0.052904]
[1733852491777,6e-05,94480.0,94479.0,0.00300087]
[1733852492182,6e-05,94480.0,94479.0,0.02321514]
[1733852492581,0.00106,94480.0,94479.0,0.02321514]
[1733852492891,0.052956,94491.0,94488.0,0.052898]
[1733852493085,0.052956,94491.0,94490.0,0.3608]
[1733852493278,0.052956,94491.0,94490.0,0.36092]
[1733852493985,0.03199444,94501.0,94490.0,0.73435191]
[1733852494186,0.32648299,94500.0,94499.0,0.3608]
[1733852494387,0.052891,94500.0,94499.0,0.37354807]
[1733852494587,0.052902,94481.0,94480.0,0.3608]
[1733852494788,0.052902,94481.0,94480.0,0.38100321]
[1733852495085,0.052902,94481.0,94480.0,0.3608]
[1733852495086,0.052962,94481.0,94480.0,0.3608]
[1733852495680,0.052962,94481.0,94480.0,0.3648]
[1733852495883,0.00106,94481.0,94480.0,0.417702]
[1733852496079,0.02099832,94501.0,94480.0,0.3648]
[1733852496080,0.27359199,94500.0,94480.0,0.3648]
[1733852496378,0.052892,94498.0,94497.0,0.3608]
[1733852497282,0.052902,94481.0,94480.0,0.3658]
[1733852497681,6e-05,94481.0,94480.0,0.3658]
[1733852498887,0.00106,94481.0,94480.0,0.3658]
[1733852499598,6e-05,94481.0,94480.0,0.3608]
[1733852499895,0.00106,94481.0,94480.0,0.3668]
[1733852501290,0.00106,94481.0,94480.0,0.3658]
[1733852502001,0.00106,94481.0,94479.0,0.05290387]
[1733852502002,0.05306862,94481.0,94479.0,8.7e-07]
[1733852502197,0.41486862,94481.0,94480.0,0.005]
[1733852502384,0.41480862,94481.0,94480.0,0.005]
[1733852503497,0.052902,94480.0,94479.0,8.7e-07]
[1733852504185,1.552902,94480.0,94479.0,8.7e-07]
[1733852505386,0.052902,94480.0,94479.0,8.7e-07]
[1733852505596,0.00010662,94481.0,94479.0,0.36080087]
[1733852505791,0.052902,94480.0,94479.0,0.00200087]
[1733852506197,0.052902,94480.0,94461.0,0.3608]
[1733852506198,0.052907,94472.0,94461.0,0.3608]
[1733852506382,0.052912,94462.0,94461.0,0.3608]
[1733852506588,0.052972,94462.0,94461.0,0.37335997]
[1733852507186,0.052972,94462.0,94461.0,0.37336482]
[1733852507386,6e-05,94462.0,94461.0,0.37336482]
[1733852507593,0.052972,94462.0,94461.0,0.37336482]
[1733852508393,0.053972,94462.0,94461.0,0.37636482]
[1733852508898,0.00106,94462.0,94461.0,0.42927782]
[1733852509506,0.01128539,94480.0,94479.0,0.052903]
[1733852509796,0.17752472,94490.0,94479.0,0.78718782]
[1733852510000,0.052899,94486.0,94480.0,0.01256482]
[1733852510198,0.052899,94486.0,94480.0,0.00012]
[1733852510498,0.17752472,94510.0,94501.0,0.05289]
[1733852510704,0.052889,94503.0,94502.0,0.42625846]
[1733852510902,0.052889,94503.0,94502.0,0.37336846]
[1733852511300,0.07401895,94503.0,94502.0,0.01256846]
[1733852511499,0.07409451,94503.0,94502.0,0.01256846]
[1733852512501,0.07409451,94503.0,94502.0,0.01258014]
[1733852513092,1.57409451,94503.0,94502.0,0.01258014]
[1733852513790,1.57409451,94503.0,94502.0,0.01258039]
[1733852514517,0.07409451,94503.0,94502.0,0.01258039]
[1733852515011,0.07409451,94503.0,94502.0,0.01358039]
[1733852515898,0.05296456,94503.0,94502.0,0.01358039]
[1733852516099,0.05296456,94503.0,94502.0,0.37438039]
[1733852516295,7.556e-05,94503.0,94502.0,0.37438039]
[1733852518903,0.3608,94526.0,94510.0,0.052885]
[1733852519101,0.3608,94526.0,94515.0,0.3608]
[1733852519102,0.01300895,94523.0,94515.0,0.3608]
[1733852519303,0.01300895,94523.0,94516.0,0.01258039]
[1733852519502,0.052881,94518.0,94517.0,0.01258039]
[1733852519897,0.00013084,94518.0,94515.0,0.3608]
[1733852520103,0.052882,94517.0,94502.0,0.3618]
[1733852520301,0.00013084,94518.0,94503.0,0.01258322]
[1733852520497,0.00013084,94518.0,94502.0,0.3618]
[1733852520498,0.052889,94504.0,94502.0,0.3618]
[1733852520709,0.052889,94504.0,94503.0,0.01258298]
[1733852521111,0.052899,94485.0,94484.0,0.3608]
[1733852521809,0.052905,94476.0,94475.0,0.052905]
[1733852522009,0.27357,94494.0,94473.0,0.25278103]
[1733852522212,0.27357,94494.0,94471.0,0.00158774]
[1733852522213,0.052907,94472.0,94471.0,0.00158774]
[1733852522514,0.052967,94472.0,94471.0,0.00158774]
[1733852522905,0.05308008,94472.0,94452.0,0.25278103]
[1733852523109,0.052914,94459.0,94457.0,0.3608]
[1733852524412,0.052914,94462.0,94461.0,0.052912]
[1733852524600,0.052914,94462.0,94457.0,0.3608]
[1733852524802,0.052912,94462.0,94461.0,0.00012]
[1733852526911,0.27357,94471.0,94467.0,0.052909]
[1733852526912,0.052908,94471.0,94467.0,0.052909]
[1733852527114,0.02177561,94472.0,94461.0,0.00012]
[1733852527115,0.00017308,94472.0,94470.0,0.413708]
[1733852527321,0.00017308,94472.0,94471.0,0.3608]
[1733852527609,0.3608,94505.0,94483.0,0.0529]
[1733852527610,0.052893,94497.0,94483.0,0.0529]
[1733852527819,0.01096968,94506.0,94487.0,0.052898]
[1733852528005,0.052888,94506.0,94497.0,0.3608]
[1733852528209,0.052888,94506.0,94505.0,0.36092]
[1733852528530,0.05296728,94506.0,94505.0,0.36092]
[1733852528719,7.928e-05,94506.0,94505.0,0.36092]
[1733852528925,0.05296728,94506.0,94505.0,0.36092]
[1733852529523,0.05296728,94506.0,94505.0,0.00012]
[1733852529727,0.05396728,94506.0,94505.0,0.00012]
[1733852530221,0.05396728,94506.0,94487.0,0.004]
[1733852530222,0.00107928,94506.0,94487.0,0.004]
[1733852530421,0.00107928,94506.0,94486.0,0.3608]
[1733852530422,0.052898,94488.0,94486.0,0.3608]
[1733852530624,0.27357,94497.0,94470.0,0.052908]
[1733852530832,0.27357,94497.0,94467.0,0.3622]
[1733852530833,0.27357,94480.0,94479.0,0.3608]
[1733852531020,0.052908,94470.0,94467.0,0.3608]
[1733852531222,0.052907,94471.0,94467.0,0.3608]
[1733852531432,6e-05,94468.0,94467.0,0.3608]
[1733852532635,6e-05,94468.0,94465.0,0.00158777]
[1733852532929,6e-05,94466.0,94465.0,0.00158777]
[1733852533229,6e-05,94466.0,94465.0,0.01398957]
[1733852534430,6e-05,94466.0,94465.0,0.06690057]
[1733852534634,0.00106,94466.0,94465.0,0.07090057]
[1733852535035,0.00106,94466.0,94465.0,0.05849877]
[1733852535229,0.00106,94466.0,94465.0,0.07090353]
[1733852537030,0.53831931,94500.0,94465.0,0.37090353]
[1733852537233,0.01141233,94488.0,94487.0,0.052898]
[1733852537420,0.06431033,94488.0,94487.0,0.01240476]
[1733852537625,0.052898,94488.0,94487.0,0.01240476]
[1733852538231,0.052903,94479.0,94473.0,0.3608]
[1733852538537,0.17751931,94483.0,94474.0,0.0124202]
[1733852538736,0.052904,94477.0,94475.0,0.0124202]
[1733852538923,0.052904,94477.0,94476.0,0.0124202]
[1733852539123,0.17751931,94483.0,94478.0,0.052903]
[1733852539323,0.052901,94482.0,94481.0,0.3608]
[1733852539523,0.052901,94482.0,94481.0,0.3732202]
[1733852540136,0.052898,94489.0,94487.0,0.052898]
[1733852540328,0.00158828,94490.0,94481.0,0.3732202]
[1733852540329,0.00158828,94490.0,94488.0,0.0124202]
[1733852540527,0.00158828,94490.0,94489.0,0.4261172]
[1733852541338,7.928e-05,94506.0,94489.0,0.4261172]
[1733852541528,0.052889,94503.0,94501.0,0.05289]
[1733852541840,0.052889,94503.0,94502.0,0.3732202]
[1733852542230,0.052889,94503.0,94502.0,0.0124202]
[1733852542533,0.052889,94503.0,94483.0,0.3608]
[1733852542734,0.052889,94503.0,94468.0,0.31597205]
[1733852542735,0.3608,94486.0,94470.0,0.25278103]
[1733852542926,0.3608,94486.0,94469.0,0.01137668]
[1733852543841,0.052902,94481.0,94478.0,0.052903]
[1733852545035,0.001,94481.0,94478.0,0.005]
[1733852545230,0.001,94481.0,94480.0,0.052902]
[1733852546034,0.001,94481.0,94478.0,0.005]
[1733852546234,0.052902,94480.0,94478.0,0.005]
[1733852546437,6e-05,94479.0,94471.0,0.3608]
[1733852546639,0.36087928,94506.0,94478.0,0.3608]
[1733852546836,0.37216188,94506.0,94492.0,0.3608]
[1733852547138,0.37216188,94506.0,94505.0,0.052888]
[1733852547139,7.928e-05,94506.0,94505.0,0.052888]
[1733852548340,0.052877,94525.0,94507.0,0.052887]
[1733852548543,0.052877,94525.0,94510.0,0.3608]
[1733852548738,0.052877,94525.0,94524.0,0.00012]
[1733852549131,0.05295256,94525.0,94524.0,0.00012]
[1733852551542,7.556e-05,94525.0,94524.0,0.00012]
[1733852552243,7.556e-05,94525.0,94524.0,0.30012]
[1733852552442,0.3608,94557.0,94524.0,0.61298184]
[1733852552638,0.17751931,94550.0,94543.0,0.3608]
[1733852552940,0.3608,94565.0,94556.0,0.00012]
[1733852552941,0.052855,94564.0,94556.0,0.00012]
[1733852553144,0.06448429,94564.0,94557.0,0.052859]
[1733852553355,0.06448429,94564.0,94563.0,0.00012]
[1733852553536,0.06459477,94564.0,94563.0,0.00012]
[1733852554545,0.00011048,94564.0,94563.0,0.00012]
[1733852554767,0.00011048,94564.0,94543.0,0.01170154]
[1733852555045,0.00011048,94564.0,94519.0,0.18911897]
[1733852555046,0.05288,94521.0,94519.0,0.18911897]
[1733852555247,0.052879,94521.0,94520.0,0.01228559]
[1733852555848,0.052883,94514.0,94510.0,0.0001248]
[1733852556039,0.052884,94512.0,94511.0,0.01228114]
[1733852556344,0.052884,94512.0,94510.0,0.0001248]
[1733852556646,0.3608,94511.0,94510.0,0.0001248]
[1733852557149,0.3608,94511.0,94510.0,8e-07]
[1733852557348,0.3608,94511.0,94471.0,0.18877948]
[1733852557644,0.052904,94477.0,94475.0,0.06521339]
[1733852557841,0.052904,94477.0,94464.0,0.52737948]
[1733852557842,0.052904,94477.0,94476.0,0.01230839]
[1733852558746,0.3608,94486.0,94476.0,0.01230839]
[1733852558974,0.3608,94496.0,94495.0,0.052894]
[1733852559246,0.3608,94496.0,94495.0,0.06532637]
[1733852559549,0.052889,94504.0,94497.0,0.052893]
[1733852559748,0.3608,94507.0,94498.0,0.06520437]
[1733852559949,0.3608,94507.0,94503.0,0.00012]
[1733852560151,0.3608,94507.0,94498.0,0.052892]
[1733852560152,0.05289,94502.0,94498.0,0.052892]
[1733852560449,0.3608,94507.0,94499.0,0.01230611]
[1733852560650,0.3608,94507.0,94500.0,0.01230611]
[1733852560847,0.052888,94506.0,94501.0,0.01230641]
[1733852561048,0.052889,94503.0,94502.0,0.01230641]
[1733852561242,0.052892,94499.0,94498.0,0.001]
[1733852561444,0.052892,94499.0,94498.0,0.01330292]
[1733852561644,0.052952,94499.0,94498.0,0.01330292]
[1733852561952,0.052895,94493.0,94492.0,0.052895]
[1733852562143,0.052895,94493.0,94492.0,0.01230477]
[1733852562445,0.052955,94493.0,94492.0,0.01230477]
[1733852563942,6e-05,94493.0,94492.0,0.06520077]
[1733852564140,0.00106,94493.0,94492.0,0.053896]
[1733852564345,0.00106,94493.0,94492.0,0.06619887]
[1733852565848,0.3608,94526.0,94492.0,0.06619887]
[1733852565849,0.3608,94526.0,94512.0,0.052884]
[1733852566152,0.00158753,94531.0,94512.0,0.37322287]
[1733852566349,0.052878,94524.0,94513.0,0.01230287]
[1733852566545,0.052878,94524.0,94520.0,0.3608]
[1733852566751,0.052878,94524.0,94521.0,0.01230287]
[1733852566944,0.052878,94524.0,94522.0,0.01230287]
[1733852567146,0.05300095,94523.0,94522.0,0.052879]
[1733852567642,0.05299995,94523.0,94522.0,0.01230942]
[1733852567952,0.41379995,94523.0,94522.0,0.01230942]
[1733852568150,0.052882,94516.0,94514.0,0.052883]
[1733852568356,0.052883,94514.0,94513.0,0.001]
[1733852568554,0.052883,94514.0,94513.0,0.01231572]
[1733852568753,0.052892,94498.0,94497.0,0.3608]
[1733852568946,0.052892,94498.0,94497.0,0.37311678]
[1733852569258,0.052892,94498.0,94493.0,0.00158722]
[1733852569259,0.36086,94498.0,94493.0,0.00158722]
[1733852569456,6e-05,94498.0,94497.0,0.3608]
[1733852569769,6e-05,94498.0,94497.0,0.37311012]
[1733852570051,6e-05,94498.0,94497.0,0.56226943]
[1733852570255,0.3608,94516.0,94497.0,0.56226943]
[1733852570256,0.3608,94526.0,94522.0,0.052879]
[1733852570553,0.00060001,94526.0,94522.0,0.06518912]
[1733852570751,0.3608,94539.0,94522.0,0.06518713]
[1733852571145,0.27359384,94550.0,94522.0,0.06518713]
[1733852571146,0.01151347,94544.0,94537.0,0.05287]
[1733852571350,0.052868,94541.0,94538.0,0.01230813]
[1733852571547,6e-05,94544.0,94539.0,0.01230813]
[1733852571548,0.052869,94540.0,94539.0,0.01230813]
[1733852571743,6e-05,94544.0,94528.0,0.052875]
[1733852571944,6e-05,94544.0,94529.0,0.01230242]
[1733852571945,0.3608,94538.0,94529.0,0.01230242]
[1733852572148,0.052873,94533.0,94530.0,0.01230242]
[1733852572454,0.052873,94533.0,94529.0,0.052875]
[1733852572455,0.052873,94533.0,94531.0,0.01230242]
[1733852572655,0.00011994,94537.0,94529.0,0.052875]
[1733852572656,0.052871,94536.0,94532.0,0.01229343]
[1733852572847,0.00011994,94537.0,94533.0,0.01229343]
[1733852573052,0.00011994,94537.0,94535.0,0.00012]
[1733852573447,0.052871,94536.0,94535.0,0.00012]
[1733852573646,0.00011994,94537.0,94503.0,0.18917593]
[1733852573647,0.052872,94535.0,94503.0,0.18917593]
[1733852573956,0.052885,94511.0,94510.0,0.052885]
[1733852574141,0.052885,94511.0,94510.0,0.06517773]
[1733852574757,0.27359384,94540.0,94510.0,0.01229273]
[1733852574947,0.413684,94512.0,94511.0,0.01229273]
[1733852575247,0.052885,94511.0,94493.0,0.00158722]
[1733852575446,0.413694,94494.0,94493.0,0.00158722]
[1733852576047,0.413754,94494.0,94493.0,0.00158722]
[1733852576745,0.36086,94494.0,94485.0,0.18917593]
[1733852576954,0.36086,94494.0,94479.0,0.61358103]
[1733852576955,0.052899,94485.0,94484.0,0.18917593]
[1733852577148,0.27359384,94493.0,94483.0,0.18935679]
[1733852577345,0.27359384,94493.0,94482.0,0.052901]
[1733852577553,0.27359384,94493.0,94472.0,0.37106]
[1733852577554,0.3608,94483.0,94472.0,0.37106]
[1733852577752,0.27359384,94482.0,94481.0,0.052902]
[1733852577951,6e-05,94473.0,94472.0,0.422607]
[1733852578354,0.00012,94473.0,94472.0,0.6119724]
[1733852578754,0.00012,94473.0,94472.0,0.422607]
[1733852578946,0.00012,94473.0,94472.0,0.783407]
[1733852579358,0.00011455,94492.0,94491.0,0.052896]
[1733852579659,0.00011455,94492.0,94491.0,0.413816]
[1733852580554,0.00011455,94492.0,94491.0,0.66659703]
[1733852580761,0.00111455,94492.0,94491.0,0.66659703]
[1733852581058,0.00111455,94492.0,94491.0,0.413816]
[1733852581560,0.00111455,94492.0,94491.0,0.66659703]
[1733852582056,0.052877,94525.0,94491.0,0.66659703]
[1733852582057,0.05288,94521.0,94491.0,0.67229601]
[1733852582257,0.052877,94526.0,94522.0,0.052879]
[1733852582456,0.052878,94523.0,94522.0,0.052879]
[1733852582667,0.05288,94520.0,94519.0,0.3608]
[1733852583056,0.05294,94520.0,94518.0,0.052881]
[1733852583253,0.00016611,94520.0,94511.0,0.60300106]
[1733852583560,0.00016611,94520.0,94511.0,0.3608]
[1733852583561,0.052944,94512.0,94511.0,0.3608]
[1733852583772,0.052944,94512.0,94503.0,0.052889]
[1733852583773,0.052888,94506.0,94503.0,0.20069651]
[1733852584060,0.3608,94519.0,94503.0,0.25358551]
[1733852584061,6e-05,94504.0,94503.0,0.25358551]
[1733852584265,6e-05,94504.0,94503.0,0.42506845]
[1733852584458,6e-05,94504.0,94503.0,0.55028956]